[Event "*** Titled Tuesday Blitz"]
[Site "Chess.com"]
[Date "2019.03.05"]
[Round "8"]
[White "Barcelona_Guy"]
[Black "DanielMieles1985"]
[Result "0-1"]
[WhiteElo "2718"]
[BlackElo "2676"]
[TimeControl "180+2"]
[EndTime "15:02:44 PST"]
[Termination "DanielMieles1985 won by resignation"]

1. e4 {[%clk 0:02:56.5]} 1... e5 {[%clk 0:03:00.6]} 2. Nf3 {[%clk 0:02:56.3]}
2... Nc6 {[%clk 0:03:01.8]} 3. Bb5 {[%clk 0:02:57.1]} 3... a6 {[%clk 0:03:02.8]}
4. Ba4 {[%clk 0:02:58.2]} 4... Nf6 {[%clk 0:03:04]} 5. O-O {[%clk 0:02:59.9]}
5... Be7 {[%clk 0:03:04.6]} 6. d3 {[%clk 0:03:00.9]} 6... b5 {[%clk 0:03:01.3]}
7. Bb3 {[%clk 0:03:02.2]} 7... d6 {[%clk 0:03:02.6]} 8. a4 {[%clk 0:03:03.7]}
8... b4 {[%clk 0:02:58.2]} 9. a5 {[%clk 0:03:02.5]} 9... O-O {[%clk 0:02:57.9]}
10. Nbd2 {[%clk 0:03:02.9]} 10... Rb8 {[%clk 0:02:57.5]} 11. h3 {[%clk
0:03:01.5]} 11... h6 {[%clk 0:02:56.8]} 12. Re1 {[%clk 0:03:01.9]} 12... Be6
{[%clk 0:02:55.1]} 13. Bxe6 {[%clk 0:03:02.5]} 13... fxe6 {[%clk 0:02:57]} 14.
Nc4 {[%clk 0:02:59.5]} 14... Qd7 {[%clk 0:02:53.9]} 15. Be3 {[%clk 0:03:00.1]}
15... Rb5 {[%clk 0:02:49.6]} 16. c3 {[%clk 0:02:58.5]} 16... Rfb8 {[%clk
0:02:48.4]} 17. Qa4 {[%clk 0:02:45.7]} 17... Bf8 {[%clk 0:02:35.4]} 18. Rad1
{[%clk 0:02:44.3]} 18... Qe8 {[%clk 0:02:29.2]} 19. Bc1 {[%clk 0:02:32.9]} 19...
bxc3 {[%clk 0:02:20.1]} 20. bxc3 {[%clk 0:02:33.5]} 20... Nd8 {[%clk 0:02:21.3]}
21. Qa2 {[%clk 0:02:32.5]} 21... Kh8 {[%clk 0:02:15.7]} 22. d4 {[%clk
0:02:33.5]} 22... exd4 {[%clk 0:02:13.9]} 23. cxd4 {[%clk 0:02:33.9]} 23... Qg6
{[%clk 0:02:00.2]} 24. Qe2 {[%clk 0:02:31.8]} 24... Rb3 {[%clk 0:01:51.9]} 25.
d5 {[%clk 0:02:13.4]} 25... e5 {[%clk 0:01:40.6]} 26. Nh4 {[%clk 0:02:09.6]}
26... Qh5 {[%clk 0:01:37.7]} 27. Qxh5 {[%clk 0:02:09.9]} 27... Nxh5 {[%clk
0:01:39.6]} 28. g4 {[%clk 0:02:01.3]} 28... Nf6 {[%clk 0:01:32.8]} 29. Kg2
{[%clk 0:02:00.8]} 29... R8b4 {[%clk 0:01:29.8]} 30. Nd2 {[%clk 0:01:58.8]}
30... Rd3 {[%clk 0:01:28.3]} 31. f3 {[%clk 0:01:57]} 31... Nb7 {[%clk
0:01:25.8]} 32. Nf1 {[%clk 0:01:44.3]} 32... Rxd1 {[%clk 0:01:21.9]} 33. Rxd1
{[%clk 0:01:46.2]} 33... Nxa5 {[%clk 0:01:23.1]} 34. Kg3 {[%clk 0:01:47.2]}
34... Nc4 {[%clk 0:01:16.9]} 35. g5 {[%clk 0:01:39.6]} 35... hxg5 {[%clk
0:01:15.7]} 36. Bxg5 {[%clk 0:01:41.5]} 36... Nd7 {[%clk 0:01:15.5]} 37. Nd2
{[%clk 0:01:36]} 37... a5 {[%clk 0:01:13.7]} 38. Nxc4 {[%clk 0:01:32]} 38...
Rxc4 {[%clk 0:01:14.5]} 39. Rb1 {[%clk 0:01:31.9]} 39... Rb4 {[%clk 0:01:12.8]}
40. Rc1 {[%clk 0:01:33.5]} 40... Nc5 {[%clk 0:01:13.7]} 41. Be3 {[%clk
0:01:34.1]} 41... Kg8 {[%clk 0:01:08.1]} 42. Ng6 {[%clk 0:01:29.6]} 42... Rb5
{[%clk 0:01:04.9]} 43. Bxc5 {[%clk 0:01:27.3]} 43... Rxc5 {[%clk 0:00:48.4]} 44.
Rb1 {[%clk 0:01:26.2]} 44... Kf7 {[%clk 0:00:47.2]} 45. Nh8+ {[%clk 0:01:27.8]}
45... Kg8 {[%clk 0:00:45.2]} 46. Ng6 {[%clk 0:01:29.1]} 46... Kf7 {[%clk
0:00:28.5]} 47. Nh8+ {[%clk 0:01:30]} 47... Kf6 {[%clk 0:00:28.8]} 48. Kh4
{[%clk 0:01:18.5]} 48... a4 {[%clk 0:00:26.6]} 49. Rb8 {[%clk 0:01:00.7]} 49...
Be7 {[%clk 0:00:27.4]} 50. Ra8 {[%clk 0:01:02.1]} 50... g6 {[%clk 0:00:26.7]}
51. Kg4 {[%clk 0:00:56.8]} 51... Kg7 {[%clk 0:00:26.6]} 52. h4 {[%clk
0:00:52.7]} 52... a3 {[%clk 0:00:23.6]} 53. h5 {[%clk 0:00:52.4]} 53... gxh5+
{[%clk 0:00:24.2]} 54. Kxh5 {[%clk 0:00:53.9]} 54... a2 {[%clk 0:00:25.7]} 55.
Ng6 {[%clk 0:00:54.8]} 55... Rc1 {[%clk 0:00:26.6]} 56. Nxe7 {[%clk 0:00:50.3]}
56... a1=Q {[%clk 0:00:26.9]} 57. Nf5+ {[%clk 0:00:51.7]} 57... Kf7 {[%clk
0:00:23]} 58. Rxa1 {[%clk 0:00:46.3]} 58... Rxa1 {[%clk 0:00:23.3]} 59. Nh6+
{[%clk 0:00:43.1]} 59... Kf6 {[%clk 0:00:23.8]} 60. Ng4+ {[%clk 0:00:43.8]}
60... Ke7 {[%clk 0:00:25.4]} 61. Kh4 {[%clk 0:00:40.5]} 61... Ra8 {[%clk
0:00:26.4]} 62. Kg3 {[%clk 0:00:40.7]} 62... Rc8 {[%clk 0:00:25.7]} 63. Ne3
{[%clk 0:00:41.2]} 63... Rg8+ {[%clk 0:00:26]} 64. Kf2 {[%clk 0:00:42]} 64...
Kf6 {[%clk 0:00:27.7]} 65. Nc2 {[%clk 0:00:38.9]} 65... Rb8 {[%clk 0:00:27]} 66.
Kg3 {[%clk 0:00:36.6]} 66... Kg5 {[%clk 0:00:27.7]} 67. Ne1 {[%clk 0:00:35.5]}
67... Rb3 {[%clk 0:00:27.9]} 68. Ng2 {[%clk 0:00:33]} 68... Rc3 {[%clk
0:00:27.5]} 69. Nh4 {[%clk 0:00:32.7]} 69... Rc1 {[%clk 0:00:26.4]} 70. Nf5
{[%clk 0:00:31]} 70... Kf6 {[%clk 0:00:22.5]} 71. Ne3 {[%clk 0:00:31.3]} 71...
Ke7 {[%clk 0:00:21.6]} 72. Nf5+ {[%clk 0:00:31]} 72... Kd7 {[%clk 0:00:22.6]}
73. Ne3 {[%clk 0:00:28.8]} 73... Ra1 {[%clk 0:00:24.5]} 74. Nc2 {[%clk
0:00:28.5]} 74... Ra4 {[%clk 0:00:24.7]} 75. Ne3 {[%clk 0:00:28.7]} 75... Kc8
{[%clk 0:00:25.2]} 76. Nf5 {[%clk 0:00:29.1]} 76... Kb7 {[%clk 0:00:26.5]} 77.
Ne7 {[%clk 0:00:30]} 77... Ra8 {[%clk 0:00:27.6]} 78. Kf2 {[%clk 0:00:28.9]}
78... Kb6 {[%clk 0:00:28.7]} 79. Nf5 {[%clk 0:00:13.4]} 79... Ra3 {[%clk
0:00:30]} 80. Ng7 {[%clk 0:00:13.8]} 80... Rc3 {[%clk 0:00:28.9]} 81. Ne6 {[%clk
0:00:14.8]} 81... Kb5 {[%clk 0:00:30.2]} 82. Kg3 {[%clk 0:00:11.2]} 82... Kb4
{[%clk 0:00:31.1]} 83. Kg4 {[%clk 0:00:11.9]} 83... Kb3 {[%clk 0:00:31.3]} 84.
f4 {[%clk 0:00:13.2]} 84... exf4 {[%clk 0:00:30.2]} 85. Kxf4 {[%clk 0:00:15.1]}
85... Kb4 {[%clk 0:00:31]} 86. Nd4 {[%clk 0:00:15.4]} 86... Kc5 {[%clk
0:00:26.4]} 87. Ne6+ {[%clk 0:00:16.1]} 87... Kb6 {[%clk 0:00:26.7]} 88. Nd4
{[%clk 0:00:15.6]} 88... Rc1 {[%clk 0:00:26.2]} 89. Ne6 {[%clk 0:00:16.2]} 89...
Rf1+ {[%clk 0:00:26.9]} 90. Ke3 {[%clk 0:00:17.5]} 90... Rf6 {[%clk 0:00:27.2]}
91. Kd4 {[%clk 0:00:17.6]} 91... c5+ {[%clk 0:00:25]} 92. Kc4 {[%clk 0:00:17.5]}
92... Rf1 {[%clk 0:00:25.1]} 93. Kc3 {[%clk 0:00:08.8]} 93... Re1 {[%clk
0:00:25.8]} 94. Kd3 {[%clk 0:00:10]} 94... Kb5 {[%clk 0:00:25.5]} 95. Ng5 {[%clk
0:00:08.5]} 95... c4+ {[%clk 0:00:26.4]} 96. Kd2 {[%clk 0:00:09.7]} 96... Ra1
{[%clk 0:00:23.1]} 97. Ne6 {[%clk 0:00:04.8]} 97... Kb4 {[%clk 0:00:23.4]} 98.
Kc2 {[%clk 0:00:06.2]} 98... Ra2+ {[%clk 0:00:24.2]} 99. Kd1 {[%clk 0:00:06.7]}
0-1

[Event "*** Titled Tuesday Blitz"]
[Site "Chess.com"]
[Date "2019.03.05"]
[Round "8"]
[White "RiskyDecision"]
[Black "nikitakhoroshev"]
[Result "1/2-1/2"]
[WhiteElo "2436"]
[BlackElo "2605"]
[TimeControl "180+2"]
[EndTime "15:04:40 PST"]
[Termination "Game drawn by repetition"]

1. d4 {[%clk 0:03:01.9]} 1... Nf6 {[%clk 0:02:59.1]} 2. c4 {[%clk 0:03:02.2]}
2... e6 {[%clk 0:02:59.7]} 3. g3 {[%clk 0:03:03.2]} 3... d5 {[%clk 0:02:58.4]}
4. Nf3 {[%clk 0:03:04.6]} 4... Be7 {[%clk 0:02:58.4]} 5. Bg2 {[%clk 0:03:05]}
5... O-O {[%clk 0:02:59.2]} 6. O-O {[%clk 0:03:06.5]} 6... b6 {[%clk 0:03:00.3]}
7. Qc2 {[%clk 0:03:00.6]} 7... Bb7 {[%clk 0:03:00.5]} 8. b3 {[%clk 0:02:49.9]}
8... Nbd7 {[%clk 0:02:59.8]} 9. Bb2 {[%clk 0:02:48.3]} 9... Rc8 {[%clk
0:02:58.4]} 10. cxd5 {[%clk 0:02:37.1]} 10... exd5 {[%clk 0:02:57.7]} 11. Nc3
{[%clk 0:02:31.5]} 11... c5 {[%clk 0:02:57]} 12. Rac1 {[%clk 0:02:25.3]} 12...
a6 {[%clk 0:02:51.7]} 13. Rfd1 {[%clk 0:02:22.6]} 13... Qc7 {[%clk 0:02:49.8]}
14. dxc5 {[%clk 0:02:14]} 14... bxc5 {[%clk 0:02:49.1]} 15. Nh4 {[%clk
0:02:03.4]} 15... d4 {[%clk 0:02:20.1]} 16. Nf5 {[%clk 0:01:44.1]} 16... Nb6
{[%clk 0:02:03.4]} 17. Ne4 {[%clk 0:01:34.4]} 17... Nxe4 {[%clk 0:01:52.5]} 18.
Bxe4 {[%clk 0:01:34.4]} 18... g6 {[%clk 0:01:52.1]} 19. Nxe7+ {[%clk 0:01:14.8]}
19... Qxe7 {[%clk 0:01:51]} 20. Bxb7 {[%clk 0:01:16.2]} 20... Qxb7 {[%clk
0:01:52.9]} 21. e3 {[%clk 0:01:03.1]} 21... dxe3 {[%clk 0:01:42.9]} 22. fxe3
{[%clk 0:01:03.9]} 22... Qe7 {[%clk 0:01:29.6]} 23. Qc3 {[%clk 0:00:59.8]} 23...
f6 {[%clk 0:01:27.8]} 24. Rf1 {[%clk 0:00:50.2]} 24... Nd5 {[%clk 0:01:14.5]}
25. Qc4 {[%clk 0:00:40.1]} 25... Qxe3+ {[%clk 0:01:14.1]} 26. Kh1 {[%clk
0:00:41.6]} 26... Qe6 {[%clk 0:00:54.9]} 27. Rcd1 {[%clk 0:00:32.4]} 27... Rcd8
{[%clk 0:00:51.2]} 28. Rfe1 {[%clk 0:00:30.5]} 28... Qc6 {[%clk 0:00:41.7]} 29.
Kg1 {[%clk 0:00:26.9]} 29... Kg7 {[%clk 0:00:33]} 30. Rc1 {[%clk 0:00:19.3]}
30... Rfe8 {[%clk 0:00:23.1]} 31. Rxe8 {[%clk 0:00:19.8]} 31... Qxe8 {[%clk
0:00:20.4]} 32. Qxc5 {[%clk 0:00:16.4]} 32... Qe6 {[%clk 0:00:19]} 33. Rd1
{[%clk 0:00:13.2]} 33... Rd7 {[%clk 0:00:13.1]} 34. Qf2 {[%clk 0:00:10]} 34...
Nb6 {[%clk 0:00:10.3]} 35. Rxd7+ {[%clk 0:00:08.3]} 35... Nxd7 {[%clk 0:00:12]}
36. Qd4 {[%clk 0:00:06.1]} 36... Kf7 {[%clk 0:00:10.3]} 37. Qc4 {[%clk
0:00:04.6]} 37... Qxc4 {[%clk 0:00:10.9]} 38. bxc4 {[%clk 0:00:06.2]} 38... Ke6
{[%clk 0:00:12.8]} 39. Kg2 {[%clk 0:00:05.3]} 39... Nb6 {[%clk 0:00:13.4]} 40.
c5 {[%clk 0:00:04.8]} 40... Na4 {[%clk 0:00:14]} 41. Bd4 {[%clk 0:00:05.1]}
41... f5 {[%clk 0:00:14.9]} 42. Kf3 {[%clk 0:00:05.6]} 42... Kd5 {[%clk
0:00:15.2]} 43. Be3 {[%clk 0:00:04.5]} 43... Nxc5 {[%clk 0:00:13.8]} 44. g4
{[%clk 0:00:03.7]} 44... fxg4+ {[%clk 0:00:13.1]} 45. Kxg4 {[%clk 0:00:04.7]}
45... Ne4 {[%clk 0:00:14.2]} 46. h4 {[%clk 0:00:04.7]} 46... Kc4 {[%clk
0:00:13.5]} 47. h5 {[%clk 0:00:04.9]} 47... gxh5+ {[%clk 0:00:15.4]} 48. Kxh5
{[%clk 0:00:06]} 48... Nc3 {[%clk 0:00:15.1]} 49. Bb6 {[%clk 0:00:05.9]} 49...
Nxa2 {[%clk 0:00:13.3]} 50. Kh6 {[%clk 0:00:06.5]} 50... Kb5 {[%clk 0:00:14.4]}
51. Bd8 {[%clk 0:00:07.5]} 51... Nb4 {[%clk 0:00:13.8]} 52. Kxh7 {[%clk
0:00:08.5]} 52... Nc6 {[%clk 0:00:13.5]} 53. Bc7 {[%clk 0:00:09]} 53... Nd4
{[%clk 0:00:13.3]} 54. Kg6 {[%clk 0:00:09.1]} 54... Ne6 {[%clk 0:00:15]} 55. Bd6
{[%clk 0:00:08.5]} 55... a5 {[%clk 0:00:15.3]} 56. Kf5 {[%clk 0:00:09.5]} 56...
Nd8 {[%clk 0:00:15.4]} 57. Ke4 {[%clk 0:00:09.6]} 57... Nc6 {[%clk 0:00:14.2]}
58. Kd3 {[%clk 0:00:09.2]} 58... a4 {[%clk 0:00:15.2]} 59. Kc2 {[%clk 0:00:09]}
59... Nd4+ {[%clk 0:00:15]} 60. Kb2 {[%clk 0:00:08.9]} 60... Nb3 {[%clk
0:00:16.7]} 61. Ka3 {[%clk 0:00:07.8]} 61... Nd2 {[%clk 0:00:16.9]} 62. Bf8
{[%clk 0:00:09]} 62... Nc4+ {[%clk 0:00:17.5]} 63. Ka2 {[%clk 0:00:10.1]} 63...
Ne5 {[%clk 0:00:19.4]} 64. Be7 {[%clk 0:00:10.7]} 64... Nd3 {[%clk 0:00:21.1]}
65. Bf8 {[%clk 0:00:11.3]} 65... Ne1 {[%clk 0:00:21.1]} 66. Be7 {[%clk
0:00:11.8]} 66... Nf3 {[%clk 0:00:23]} 67. Bf8 {[%clk 0:00:12.7]} 67... Nd4
{[%clk 0:00:23.9]} 68. Be7 {[%clk 0:00:13.5]} 68... Ne6 {[%clk 0:00:24.9]} 69.
Bd6 {[%clk 0:00:13.9]} 69... Kc6 {[%clk 0:00:24.9]} 70. Ka3 {[%clk 0:00:12.9]}
70... Kb5 {[%clk 0:00:25]} 71. Ka2 {[%clk 0:00:14.1]} 71... Nd4 {[%clk
0:00:25.2]} 72. Bf8 {[%clk 0:00:14.2]} 72... Nc6 {[%clk 0:00:27.1]} 73. Bd6
{[%clk 0:00:14.1]} 73... Na5 {[%clk 0:00:27.9]} 74. Bf8 {[%clk 0:00:14.1]} 74...
Nc4 {[%clk 0:00:29.5]} 75. Be7 {[%clk 0:00:15]} 75... Ne3 {[%clk 0:00:30.3]} 76.
Bf8 {[%clk 0:00:15.7]} 76... Nd5 {[%clk 0:00:32.2]} 77. Bd6 {[%clk 0:00:16.4]}
77... Nc3+ {[%clk 0:00:30.1]} 78. Kb2 {[%clk 0:00:17.3]} 78... Ne4 {[%clk
0:00:29.8]} 79. Bf8 {[%clk 0:00:17.9]} 79... Nd2 {[%clk 0:00:29.3]} 80. Ka2
{[%clk 0:00:18.4]} 80... Nc4 {[%clk 0:00:29.4]} 81. Be7 {[%clk 0:00:19]} 81...
Ne5 {[%clk 0:00:29.5]} 82. Bf8 {[%clk 0:00:19.7]} 82... Nd7 {[%clk 0:00:31.4]}
83. Be7 {[%clk 0:00:20]} 83... Nb6 {[%clk 0:00:32.1]} 84. Bf8 {[%clk 0:00:20.5]}
84... Nd5 {[%clk 0:00:33.3]} 85. Bd6 {[%clk 0:00:19.3]} 85... Nc3+ {[%clk
0:00:33.7]} 86. Kb2 {[%clk 0:00:19.9]} 86... Kc4 {[%clk 0:00:33]} 87. Bf8 {[%clk
0:00:19.6]} 87... Nb5 {[%clk 0:00:33.1]} 88. Ka2 {[%clk 0:00:18.9]} 88... Kc3
{[%clk 0:00:32.8]} 89. Be7 {[%clk 0:00:18.7]} 89... Kc2 {[%clk 0:00:34.7]} 90.
Bf8 {[%clk 0:00:19.1]} 90... Kd3 {[%clk 0:00:34.7]} 91. Be7 {[%clk 0:00:19.8]}
91... Kc4 {[%clk 0:00:36.5]} 92. Bf8 {[%clk 0:00:20.5]} 92... Nc3+ {[%clk
0:00:37.6]} 93. Ka3 {[%clk 0:00:21.2]} 93... Kb5 {[%clk 0:00:38.2]} 94. Be7
{[%clk 0:00:21.6]} 94... Nb1+ {[%clk 0:00:36.5]} 95. Ka2 {[%clk 0:00:22.1]}
95... Nd2 {[%clk 0:00:38.4]} 96. Bf8 {[%clk 0:00:22.8]} 96... Ne4 {[%clk
0:00:38.7]} 97. Be7 {[%clk 0:00:23.6]} 97... Nc3+ {[%clk 0:00:39]} 98. Kb2
{[%clk 0:00:24.6]} 98... Nd5 {[%clk 0:00:39.5]} 99. Bf8 {[%clk 0:00:25.7]} 99...
Nb6 {[%clk 0:00:40.5]} 100. Ka2 {[%clk 0:00:25.5]} 100... Nd7 {[%clk 0:00:39.9]}
101. Be7 {[%clk 0:00:26.1]} 101... Ne5 {[%clk 0:00:40.5]} 102. Bf8 {[%clk
0:00:26.2]} 102... Nc6 {[%clk 0:00:42.2]} 103. Kb2 {[%clk 0:00:26]} 103... Kc4
{[%clk 0:00:42.3]} 104. Ka2 {[%clk 0:00:26.1]} 104... Kb5 {[%clk 0:00:44.2]}
105. Kb2 {[%clk 0:00:26.8]} 105... Nd4 {[%clk 0:00:45.1]} 106. Ka2 {[%clk
0:00:26.8]} 106... Nb3 {[%clk 0:00:46.7]} 107. Be7 {[%clk 0:00:27]} 107... Nc1+
{[%clk 0:00:45.2]} 108. Ka3 {[%clk 0:00:27.7]} 108... Nd3 {[%clk 0:00:46.8]}
109. Ka2 {[%clk 0:00:27.9]} 109... Ne5 {[%clk 0:00:45.4]} 110. Bf8 {[%clk
0:00:27.7]} 110... Nc6 {[%clk 0:00:47.2]} 111. Kb2 {[%clk 0:00:27.7]} 111... Na5
{[%clk 0:00:47.1]} 112. Ka2 {[%clk 0:00:28.3]} 112... Nc4 {[%clk 0:00:49]} 113.
Be7 {[%clk 0:00:28.4]} 113... Nb6 {[%clk 0:00:49.1]} 114. Bf8 {[%clk 0:00:28.3]}
114... Nd5 {[%clk 0:00:50.9]} 115. Kb2 {[%clk 0:00:28.5]} 115... Nf6 {[%clk
0:00:50.8]} 116. Ka2 {[%clk 0:00:28.7]} 116... Nd7 {[%clk 0:00:52.1]} 117. Be7
{[%clk 0:00:29.3]} 117... Nb6 {[%clk 0:00:51.5]} 118. Bf8 {[%clk 0:00:29.9]}
118... Nc8 {[%clk 0:00:53.4]} 119. Kb2 {[%clk 0:00:29.9]} 119... Na7 {[%clk
0:00:51.8]} 120. Ka2 {[%clk 0:00:30.5]} 120... Nc6 {[%clk 0:00:53.7]} 1/2-1/2

[Event "*** Titled Tuesday Blitz"]
[Site "Chess.com"]
[Date "2019.03.05"]
[Round "9"]
[White "Nancy11111"]
[Black "j2806"]
[Result "1-0"]
[WhiteElo "2274"]
[BlackElo "1790"]
[TimeControl "180+2"]
[EndTime "15:07:00 PST"]
[Termination "Nancy11111 won by resignation"]

1. e4 {[%clk 0:03:01.9]} 1... c5 {[%clk 0:02:51.4]} 2. Nc3 {[%clk 0:03:02.3]}
2... Nc6 {[%clk 0:02:49.2]} 3. f4 {[%clk 0:03:02.8]} 3... g6 {[%clk 0:02:45.1]}
4. Nf3 {[%clk 0:03:03.4]} 4... Bg7 {[%clk 0:02:40.9]} 5. Bb5 {[%clk 0:03:02.6]}
5... Nd4 {[%clk 0:02:40.9]} 6. Bc4 {[%clk 0:03:02.3]} 6... e6 {[%clk 0:02:38.5]}
7. e5 {[%clk 0:03:01.8]} 7... Ne7 {[%clk 0:02:38.1]} 8. Ne4 {[%clk 0:03:01]}
8... Nxf3+ {[%clk 0:02:30.4]} 9. Qxf3 {[%clk 0:03:02.9]} 9... Nf5 {[%clk
0:02:30.6]} 10. O-O {[%clk 0:03:02]} 10... d5 {[%clk 0:02:23]} 11. exd6 {[%clk
0:02:57.4]} 11... Nxd6 {[%clk 0:02:19.8]} 12. Nxd6+ {[%clk 0:02:58.4]} 12...
Qxd6 {[%clk 0:02:20.8]} 13. Bb5+ {[%clk 0:02:59.3]} 13... Bd7 {[%clk 0:02:21.1]}
14. Qxb7 {[%clk 0:02:53.5]} 14... Qd5 {[%clk 0:02:13.9]} 15. Bxd7+ {[%clk
0:02:53]} 1-0

[Event "*** Titled Tuesday Blitz"]
[Site "Chess.com"]
[Date "2019.03.05"]
[Round "9"]
[White "Witaliss"]
[Black "Romn69"]
[Result "1-0"]
[WhiteElo "2395"]
[BlackElo "2213"]
[TimeControl "180+2"]
[EndTime "15:07:22 PST"]
[Termination "Witaliss won by resignation"]

1. d4 {[%clk 0:03:01.9]} 1... Nf6 {[%clk 0:03:00.1]} 2. c4 {[%clk 0:03:02.4]}
2... e6 {[%clk 0:03:00.8]} 3. Nf3 {[%clk 0:03:02.8]} 3... d5 {[%clk 0:03:01.6]}
4. Nc3 {[%clk 0:03:03.1]} 4... c6 {[%clk 0:03:02.6]} 5. Qb3 {[%clk 0:03:02.5]}
5... dxc4 {[%clk 0:02:59.4]} 6. Qxc4 {[%clk 0:03:02.9]} 6... b5 {[%clk
0:03:00.2]} 7. Qb3 {[%clk 0:03:01.8]} 7... a6 {[%clk 0:03:00.3]} 8. Bg5 {[%clk
0:03:01.3]} 8... Be7 {[%clk 0:02:57.9]} 9. Rc1 {[%clk 0:03:02]} 9... Nbd7 {[%clk
0:02:57.5]} 10. e3 {[%clk 0:03:02.4]} 10... c5 {[%clk 0:02:56.5]} 11. Be2 {[%clk
0:02:56.2]} 11... O-O {[%clk 0:02:56.2]} 12. O-O {[%clk 0:02:56.4]} 12... Bb7
{[%clk 0:02:54.7]} 13. Rfd1 {[%clk 0:02:55.1]} 13... Qb6 {[%clk 0:02:41.2]} 14.
Ne5 {[%clk 0:02:45.8]} 14... Nxe5 {[%clk 0:02:25.3]} 15. dxe5 {[%clk 0:02:46]}
15... Nd5 {[%clk 0:02:23.9]} 16. Nxd5 {[%clk 0:02:42.9]} 16... Bxd5 {[%clk
0:02:21.8]} 17. Rxd5 {[%clk 0:02:42.4]} 17... exd5 {[%clk 0:02:22]} 18. Bxe7
{[%clk 0:02:42.3]} 18... Rfc8 {[%clk 0:02:22]} 19. Qxd5 {[%clk 0:02:40.9]} 1-0

[Event "*** Titled Tuesday Blitz"]
[Site "Chess.com"]
[Date "2019.03.05"]
[Round "9"]
[White "DanielMieles1985"]
[Black "GadimbayliA"]
[Result "1-0"]
[WhiteElo "2702"]
[BlackElo "2835"]
[TimeControl "180+2"]
[EndTime "15:09:00 PST"]
[Termination "DanielMieles1985 won by resignation"]

1. d4 {[%clk 0:03:01.9]} 1... Nf6 {[%clk 0:02:59.9]} 2. c4 {[%clk 0:03:03.1]}
2... e6 {[%clk 0:03:00.8]} 3. Nc3 {[%clk 0:03:03.6]} 3... Bb4 {[%clk 0:03:01]}
4. Qc2 {[%clk 0:03:04.9]} 4... c5 {[%clk 0:03:00.7]} 5. dxc5 {[%clk 0:03:05.3]}
5... Nc6 {[%clk 0:03:01]} 6. Nf3 {[%clk 0:03:02.8]} 6... O-O {[%clk 0:03:01.5]}
7. Bg5 {[%clk 0:03:03]} 7... Bxc5 {[%clk 0:03:02]} 8. a3 {[%clk 0:03:02.5]} 8...
Be7 {[%clk 0:03:00.9]} 9. e3 {[%clk 0:03:02.1]} 9... d5 {[%clk 0:02:59]} 10. Rd1
{[%clk 0:03:00.1]} 10... Qa5 {[%clk 0:02:44.1]} 11. Bd3 {[%clk 0:02:15.1]} 11...
h6 {[%clk 0:02:39.5]} 12. Bh4 {[%clk 0:02:09.2]} 12... dxc4 {[%clk 0:02:25]} 13.
Bxc4 {[%clk 0:02:07.8]} 13... e5 {[%clk 0:01:56.6]} 14. O-O {[%clk 0:02:01.9]}
14... Bg4 {[%clk 0:01:57.1]} 15. Bxf6 {[%clk 0:02:02.7]} 15... Bxf6 {[%clk
0:01:59]} 16. Nd5 {[%clk 0:02:04.1]} 16... Rac8 {[%clk 0:01:24]} 17. Nxf6+
{[%clk 0:01:58.7]} 17... gxf6 {[%clk 0:01:23]} 18. Qg6+ {[%clk 0:02:00.2]} 1-0

[Event "*** Titled Tuesday Blitz"]
[Site "Chess.com"]
[Date "2019.03.05"]
[Round "9"]
[White "BASSU1"]
[Black "dopolian"]
[Result "1-0"]
[WhiteElo "2112"]
[BlackElo "2175"]
[TimeControl "180+2"]
[EndTime "15:09:35 PST"]
[Termination "BASSU1 won by resignation"]

1. e4 {[%clk 0:03:01.9]} 1... e5 {[%clk 0:02:59.5]} 2. a3 {[%clk 0:02:51.2]}
2... Nf6 {[%clk 0:02:58.1]} 3. Nc3 {[%clk 0:02:50.2]} 3... Nc6 {[%clk
0:02:58.3]} 4. Nf3 {[%clk 0:02:50.7]} 4... a5 {[%clk 0:02:52.7]} 5. Bc4 {[%clk
0:02:49.9]} 5... Bc5 {[%clk 0:02:53.1]} 6. d3 {[%clk 0:02:50.8]} 6... O-O {[%clk
0:02:53.5]} 7. h3 {[%clk 0:02:50.4]} 7... d6 {[%clk 0:02:54.5]} 8. Nh4 {[%clk
0:02:50.7]} 8... Be6 {[%clk 0:02:54.3]} 9. Ba2 {[%clk 0:02:46.4]} 9... Bxa2
{[%clk 0:02:53.2]} 10. Rxa2 {[%clk 0:02:48.3]} 10... Nxe4 {[%clk 0:02:42.5]} 11.
Nxe4 {[%clk 0:02:48.3]} 11... Qxh4 {[%clk 0:02:42.2]} 12. Bg5 {[%clk 0:02:48.6]}
12... Bxf2+ {[%clk 0:02:23]} 13. Kf1 {[%clk 0:02:48.1]} 13... Qxe4 {[%clk
0:01:57]} 14. dxe4 {[%clk 0:02:46.7]} 14... Bc5 {[%clk 0:01:55.5]} 15. c3 {[%clk
0:02:45.5]} 15... f5 {[%clk 0:01:56]} 16. Ke2 {[%clk 0:02:42.7]} 16... fxe4
{[%clk 0:01:54.3]} 17. Be3 {[%clk 0:02:43.2]} 17... Bxe3 {[%clk 0:01:45.2]} 18.
Kxe3 {[%clk 0:02:45.1]} 18... Rf4 {[%clk 0:01:38.3]} 19. Qb3+ {[%clk 0:02:35.4]}
19... Kf8 {[%clk 0:00:54.5]} 20. Qxb7 {[%clk 0:02:31.9]} 20... Rd8 {[%clk
0:00:53]} 21. Qxc6 {[%clk 0:02:29.9]} 21... d5 {[%clk 0:00:53.7]} 22. Qxc7
{[%clk 0:02:30]} 22... Ke8 {[%clk 0:00:46.7]} 23. Qxe5+ {[%clk 0:02:29.8]} 1-0

[Event "*** Titled Tuesday Blitz"]
[Site "Chess.com"]
[Date "2019.03.05"]
[Round "9"]
[White "DACF2905"]
[Black "SamCopeland"]
[Result "0-1"]
[WhiteElo "2068"]
[BlackElo "2047"]
[TimeControl "180+2"]
[EndTime "15:10:56 PST"]
[Termination "SamCopeland won by resignation"]

1. e4 {[%clk 0:03:01.9]} 1... Nf6 {[%clk 0:02:59.7]} 2. e5 {[%clk 0:03:02.3]}
2... Nd5 {[%clk 0:02:59.1]} 3. d4 {[%clk 0:03:00.7]} 3... d6 {[%clk 0:03:00.1]}
4. exd6 {[%clk 0:03:01.9]} 4... exd6 {[%clk 0:03:02]} 5. c4 {[%clk 0:03:01.3]}
5... Nb6 {[%clk 0:03:02.5]} 6. Nf3 {[%clk 0:03:02.2]} 6... Be7 {[%clk
0:03:02.7]} 7. Be3 {[%clk 0:03:02.8]} 7... O-O {[%clk 0:03:03.5]} 8. Nc3 {[%clk
0:03:03.6]} 8... Be6 {[%clk 0:03:02.4]} 9. b3 {[%clk 0:03:03.1]} 9... d5 {[%clk
0:03:02.2]} 10. c5 {[%clk 0:03:03.3]} 10... Nc8 {[%clk 0:03:03]} 11. Bd3 {[%clk
0:03:03.7]} 11... Bf6 {[%clk 0:03:03.8]} 12. O-O {[%clk 0:03:03]} 12... Nc6
{[%clk 0:02:51.2]} 13. Ne2 {[%clk 0:02:56.7]} 13... Bg4 {[%clk 0:02:41.9]} 14.
Nf4 {[%clk 0:02:53.3]} 14... Nxd4 {[%clk 0:02:34.6]} 15. Bxd4 {[%clk 0:02:52.3]}
15... Bxd4 {[%clk 0:02:36.4]} 16. Bxh7+ {[%clk 0:02:52.4]} 16... Kxh7 {[%clk
0:02:38.3]} 17. Qxd4 {[%clk 0:02:52.7]} 17... Bxf3 {[%clk 0:02:39.3]} 18. gxf3
{[%clk 0:02:52.4]} 18... c6 {[%clk 0:02:40.1]} 19. Kh1 {[%clk 0:02:49.9]} 19...
Ne7 {[%clk 0:01:51.6]} 20. Rg1 {[%clk 0:02:37.4]} 20... Nf5 {[%clk 0:01:52]} 21.
Qd3 {[%clk 0:02:37.1]} 21... g6 {[%clk 0:01:53.1]} 22. Ng2 {[%clk 0:02:29.8]}
22... Qf6 {[%clk 0:01:46.8]} 23. Ne3 {[%clk 0:02:19.6]} 23... Nh4 {[%clk
0:01:40.9]} 24. Rg3 {[%clk 0:02:16.4]} 24... Qxa1+ {[%clk 0:01:40.9]} 25. Nf1
{[%clk 0:02:12.2]} 25... Qf6 {[%clk 0:01:37.1]} 26. f4 {[%clk 0:02:12.5]} 26...
Rae8 {[%clk 0:01:34.7]} 27. Rh3 {[%clk 0:02:09.5]} 27... Re1 {[%clk 0:01:20.3]}
28. Kg1 {[%clk 0:02:10.4]} 28... Kg7 {[%clk 0:01:17.1]} 29. Rg3 {[%clk
0:02:03.8]} 29... Rfe8 {[%clk 0:01:01.8]} 30. Rh3 {[%clk 0:01:46]} 30... Qa1
{[%clk 0:00:52.3]} 31. Rxh4 {[%clk 0:01:40.5]} 31... Rxf1+ {[%clk 0:00:52.7]}
32. Kg2 {[%clk 0:01:41.8]} 32... Rg1+ {[%clk 0:00:53.3]} 33. Kh3 {[%clk
0:01:42.9]} 33... Qf1+ {[%clk 0:00:54]} 0-1